Cogmind - Beta 12 @@@ ROGUE MODE // 2023.05.09 @ 18:35:54 Player: Mr Goldstein Result: Self-destructed Performance ------------- Evolutions (1) 500 Regions Visited (5) 1000 Robots Destroyed (9) 45 Value Destroyed (262) 262 Prototype IDs (23) 460 Alien Tech Used (0) 0 Bonus (500) 500 TOTAL SCORE: 2767 Bonus ------- Pacifist 200 Aligned with FarCom 300 Cogmind --------- Core Integrity 162/400 Matter 300/300 Energy 100/100 System Corruption 0% Temperature Cool (0) Movement Core (50) Location -8/Mines Parts ------- > --- POWER (1) -------- (None) > --- PROPULSION (2) --- Light Treads > --- UTILITY (4) ------ Visual Processing Unit > --- WEAPON (2) ------- Heavy Hammer > --- INVENTORY (5) ---- Potential Leg Potential Leg Peak State ------------ > --- POWER ------------ (None) > --- PROPULSION ------- Light Treads Light Treads > --- UTILITY ---------- Visual Processing Unit > --- WEAPON ----------- Heavy Hammer > --- INVENTORY -------- Potential Leg Potential Leg [Rating: 8] Favorites ----------- Power None Propulsion Light Treads Treads Light Treads Utility Visual Processing Unit Processor Visual Processing Unit Weapon Heavy Hammer Impact Weapon Heavy Hammer Build | -11 -10 -9 -9 -9 -8 ------- Run | Jun Mat Mat Min Exi Min Slots Evolved 2 | . . 2 . . . Power . | . . . . . . Propulsion . | . . . . . . Utility 2 | . . 2 . . . Weapon . | . . . . . . Parts Attached 5 | 2 . 2 1 . . Power . | . . . . . . Engine . | . . . . . . Core . | . . . . . . Reactor . | . . . . . . Propulsion 2 | 2 . . . . . Treads 2 | 2 . . . . . Leg . | . . . . . . Wheel . | . . . . . . Hover . | . . . . . . Flight . | . . . . . . Utility 1 | . . 1 . . . Device . | . . . . . . Storage . | . . . . . . Processor 1 | . . 1 . . . Hackware . | . . . . . . Protection . | . . . . . . Artifact . | . . . . . . Weapon 2 | . . 1 1 . . Energy Gun . | . . . . . . Energy Cannon . | . . . . . . Ballistic Gun . | . . . . . . Ballistic Cannon . | . . . . . . Launcher . | . . . . . . Special Weapon . | . . . . . . Impact Weapon 2 | . . 1 1 . . Slashing Weapon . | . . . . . . Piercing Weapon . | . . . . . . Special Melee Weapon . | . . . . . . Unidentified Prototypes . | . . . . . . Parts Lost 1 | . . . . . 1 Power . | . . . . . . Propulsion 1 | . . . . . 1 Utility . | . . . . . . Weapon . | . . . . . . Highest Loss Streak 1 | . . . . . 1 To Critical Strikes . | . . . . . . Average Slot Usage (%) 40 | . 28 35 41 44 41 Treads 21 | . 28 22 22 22 19 Processor 10 | . . 8 11 11 11 Impact Weapon 8 | . . 4 8 11 11 Naked Turns . | . . . . . . Heaviest Build 3 | . . 3 3 3 3 Greatest Support 20 | 20 3 3 3 3 3 Greatest Overweight (x) . | . . . . . . Average Overweight (x) . | . . . . . . Largest Inventory Capacity 5 | 5 5 5 5 5 5 Average Capacity 5 | 5 5 5 5 5 5 Most Carried 2 | . . 1 1 2 2 Average Carried . | . . . . . 2 Final Capacity 5 | 5 5 5 5 5 5 Final Carried 2 | . . 1 . 2 2 Class Distribution -------------------- 100% | Mutant Dominant Class ---------------- Mutant | -10/Materials Mutant | -9/Materials Mutant | -9/Mines Mutant | -9/Exiles Mutant | -8/Mines Resources | -11 -10 -9 -9 -9 -8 ----------- Run | Jun Mat Mat Min Exi Min Matter Collected 247 | 220 . 17 10 . . Remotely . | . . . . . . Salvage Created 333 | . . 69 28 . 236 Parts 6 | . . . . . 6 Haulers Intercepted 2 | . . 2 . . . Recyclers Shooed . | . . . . . . Parts Field Recycled . | . . . . . . Retrieved Matter . | . . . . . . Parts Self-Destructed . | . . . . . . Prevented . | . . . . . . Kills | -11 -10 -9 -9 -9 -8 ------- Run | Jun Mat Mat Min Exi Min Combat Hostiles Destroyed 6 | . . . 1 . 5 Melee 3 | . . . . . 3 Classes Destroyed 5 | . . 1 1 . 3 Builder 1 | . . . . . 1 Hauler 2 | . . 2 . . . Swarmer 1 | . . . 1 . . Grunt 4 | . . . . . 4 Hunter 1 | . . . . . 1 Best Kill Streak 4 | . . 2 1 . 4 Combat Bots Only 4 | . . . 1 . 4 Max Kills in Single Turn 1 | . . 1 1 . 1 Gunslinging . | . . . . . . Exploded . | . . . . . . Melee 1 | . . . . . 1 Uniques/NPCs Destroyed . | . . . . . . Combat | -11 -10 -9 -9 -9 -8 -------- Run | Jun Mat Mat Min Exi Min Damage Taken 556 | . 28 73 43 . 412 Core 238 | . . 29 22 . 187 Absorbed by Shields . | . . . . . . Core Remaining (%) 100 | 100 100 . . . . Volleys Fired . | . . . . . . Largest . | . . . . . . Hottest . | . . . . . . Shots Fired . | . . . . . . Gun . | . . . . . . Cannon . | . . . . . . Launcher . | . . . . . . Special . | . . . . . . Kinetic . | . . . . . . Thermal . | . . . . . . Explosive . | . . . . . . Electromagnetic . | . . . . . . Robot Hit Streak . | . . . . . . Robot Miss Streak . | . . . . . . Penetration Max . | . . . . . . Secondary Targets . | . . . . . . Shots Hit Robots 27 | . . 7 3 . 17 Core Hits 1 | . . . . . 1 Critical Kills . | . . . . . . Critical Parts Destroyed 8 | . . 2 1 . 5 Critical Strikes 8 | . . 2 1 . 5 Smash 8 | . . 2 1 . 5 Melee Attacks 36 | . . 8 4 . 24 Impact 36 | . . 8 4 . 24 Slashing . | . . . . . . Piercing . | . . . . . . Sneak Attacks 3 | . . 2 . . 1 Combat Hostiles . | . . . . . . Follow-up Attacks . | . . . . . . Damage Inflicted 1322 | . . 419 193 . 710 Guns . | . . . . . . Cannons . | . . . . . . Explosions . | . . . . . . Melee 1316 | . . 413 193 . 710 Ramming 6 | . . 6 . . . Kinetic . | . . . . . . Thermal . | . . . . . . Explosive . | . . . . . . Electromagnetic . | . . . . . . Impact 1316 | . . 413 193 . 710 Slashing . | . . . . . . Piercing . | . . . . . . Highest Corruption . | . . . . . . Average Corruption . | . . . . . . Corruption Purged . | . . . . . . Corruption Blocked . | . . . . . . Overload Shots . | . . . . . . Overflow Damage 625 | . . 194 133 . 298 Projectiles . | . . . . . . Explosions . | . . . . . . Melee 625 | . . 194 133 . 298 Knockbacks . | . . . . . . Impact . | . . . . . . Kinetic . | . . . . . . Secondary . | . . . . . . Self-Inflicted Damage 3 | . . 3 . . . Shots . | . . . . . . Rammed 1 | . . 1 . . . Targets Rammed 1 | . . 1 . . . Kicked . | . . . . . . Crushed . | . . . . . . Highest Temperature 1 | . . . . . 1 Average Temperature 1 | . . . . . 1 Received Heat Transfer 240 | . 15 18 . . 207 Siege Activations . | . . . . . . Robots Corrupted . | . . . . . . Combat Hostiles . | . . . . . . Parts Fried 7 | . . 1 1 . 5 Impact Corruptions 18 | . . 4 4 . 10 Robots Melted . | . . . . . . Combat Hostiles . | . . . . . . Parts Melted . | . . . . . . Heat Transferred . | . . . . . . Parts Sabotaged . | . . . . . . Parts Stolen . | . . . . . . Parts Stripped . | . . . . . . Power Chain Reactions . | . . . . . . Missiles Intercepted . | . . . . . . Alert | -11 -10 -9 -9 -9 -8 ------- Run | Jun Mat Mat Min Exi Min Peak Influence 160 | . 30 41 110 . 160 Initial 15 | . . 12 15 . . Average 66 | . 25 27 85 . 75 Maximum Alert Level . | . . . . . . Low Security (%) 100 | 100 100 100 100 . 100 Level 1 . | . . . . . . Level 2 . | . . . . . . Level 3 . | . . . . . . Level 4 . | . . . . . . Level 5 . | . . . . . . High Security . | . . . . . . Max Security . | . . . . . . Squads Dispatched 3 | . 1 1 . . 1 Investigation 3 | . 1 1 . . 1 Extermination . | . . . . . . Reinforcement . | . . . . . . Assault . | . . . . . . Garrison . | . . . . . . Intercept . | . . . . . . Searches Triggered . | . . . . . . Construction Impeded . | . . . . . . Haulers Reinforced . | . . . . . . Active Scanning Responses . | . . . . . . Cargo Convoy Interrupts . | . . . . . . Stealth | -11 -10 -9 -9 -9 -8 --------- Run | Jun Mat Mat Min Exi Min Distress Signals . | . . . . . . Communications Jammed . | . . . . . . Distress Signals . | . . . . . . Times Spotted 19 | . 2 1 6 . 10 Peak Tracking Total 7 | . 2 1 4 . 7 Tactical Retreats 3 | . . . 2 . 1 Traps | -11 -10 -9 -9 -9 -8 ------- Run | Jun Mat Mat Min Exi Min Traps Triggered 1 | . . 1 . . . Indirectly . | . . . . . . Trap Hack Attempts . | . . . . . . Triggered . | . . . . . . Disarmed . | . . . . . . Reprogrammed . | . . . . . . Reused . | . . . . . . Traps Extracted . | . . . . . . Installed . | . . . . . . Triggered . | . . . . . . Machines | -11 -10 -9 -9 -9 -8 ---------- Run | Jun Mat Mat Min Exi Min Machines Disabled . | . . . . . . Max in Single Turn . | . . . . . . Machines Repaired . | . . . . . . Machines Sabotaged . | . . . . . . Overloaded Fab Kills . | . . . . . . Hacking | -11 -10 -9 -9 -9 -8 --------- Run | Jun Mat Mat Min Exi Min Machines Accessed 4 | . 1 1 . 1 1 Terminals 2 | . . 1 . . 1 Fabricators . | . . . . . . Repair Stations . | . . . . . . Recycling Units 1 | . 1 . . . . Scanalyzers . | . . . . . . Garrison Access . | . . . . . . Total Hacks 7 | . 1 1 . 1 4 Successful 3 | . 1 1 . 1 . Failed 4 | . . . . . 4 Catastrophic 2 | . . . . . 2 Database Lockouts . | . . . . . . Manual 7 | . 1 1 . 1 4 Terminals 5 | . . 1 . . 4 Fabricators . | . . . . . . Repair Stations . | . . . . . . Recycling Units 1 | . 1 . . . . Scanalyzers . | . . . . . . Garrison Access . | . . . . . . Terminal Hacks 2 | . . 1 . 1 . Branch Access Points 1 | . . 1 . . . EX-Prototype ID Bank 1 | . . . . 1 . Fabricator Hacks . | . . . . . . Repair Station Hacks . | . . . . . . Recycling Unit Hacks . | . . . . . . Scanalyzer . | . . . . . . Garrison Access Hacks . | . . . . . . Unauthorized Hacks 1 | . 1 . . . . Terminals . | . . . . . . Fabricators . | . . . . . . Repair Stations . | . . . . . . Recycling Units 1 | . 1 . . . . Tunnel 1 | . 1 . . . . Scanalyzers . | . . . . . . Garrison Access . | . . . . . . Data Cores Recovered . | . . . . . . Used . | . . . . . . Hacking Detections 1 | . . . . . 1 Full Trace Events 1 | . . . . . 1 Feedback Events . | . . . . . . Feedback Blocked . | . . . . . . Robot Schematics Acquired . | . . . . . . Robots Built . | . . . . . . Authchips . | . . . . . . Time . | . . . . . . Total Robot Build Rating . | . . . . . . Part Schematics Acquired . | . . . . . . Parts Built . | . . . . . . Authchips . | . . . . . . Time . | . . . . . . Total Part Build Rating . | . . . . . . Parts Repaired . | . . . . . . Time . | . . . . . . Parts Recycled . | . . . . . . Recycled Matter . | . . . . . . Retrieved Matter . | . . . . . . Retrieved Components . | . . . . . . Parts Scanalyzed . | . . . . . . Part Schematics Acquired . | . . . . . . Parts Damaged . | . . . . . . Bothacking | -11 -10 -9 -9 -9 -8 ------------ Run | Jun Mat Mat Min Exi Min Used RIF Installer . | . . . . . . Robots Hacked . | . . . . . . Non-combat . | . . . . . . Combat . | . . . . . . Robot Hacks Applied . | . . . . . . Relay Couplers Released . | . . . . . . Fabnet Peak Effective % . | . . . . . . Robots Rewired . | . . . . . . Allies Hacked . | . . . . . . Hacks Repelled . | . . . . . . Allies | -11 -10 -9 -9 -9 -8 -------- Run | Jun Mat Mat Min Exi Min Total Allies . | . . . . . . Largest Group . | . . . . . . Highest-Rated Group . | . . . . . . Highest-Rated Ally . | . . . . . . Total Orders . | . . . . . . Ally Attacks . | . . . . . . Total Damage . | . . . . . . Kills . | . . . . . . Allies Corrupted . | . . . . . . Allies Melted . | . . . . . . Intel | -11 -10 -9 -9 -9 -8 ------- Run | Jun Mat Mat Min Exi Min Robot Analysis Total . | . . . . . . Derelict Logs Recovered . | . . . . . . Drone Launches . | . . . . . . Drone Recoveries . | . . . . . . Exploration | -11 -10 -9 -9 -9 -8 ------------- Run | Jun Mat Mat Min Exi Min Turns Passed 613 | 21 24 92 254 105 117 Spaces Moved 827 | 32 48 129 321 206 91 Core 825 | 30 48 129 321 206 91 Treads 2 | 2 . . . . . Legs . | . . . . . . Wheels . | . . . . . . Hover . | . . . . . . Flight . | . . . . . . Fastest Speed 50 | 50 50 50 50 50 50 Average Speed 50 | 56 50 50 50 50 50 Slowest Speed 160 | 160 50 50 50 50 50 Overloaded Moves . | . . . . . . Propulsion Burnouts . | . . . . . . Robots Hopped . | . . . . . . Cave-ins Triggered . | . . . . . . Exploration Rate (%) 32 | 4 27 19 51 62 32 Regions Visited 5 Branch Regions 3 Pre-discovered Areas 1 | . 1 . . . . Known Exits Taken 1 | . . 1 . . . Unknown Exits Taken 4 | 1 1 . 1 1 . Scrap Searched 1 | . . . 1 . . Spaces Dug . | . . . . . . Terrain Destroyed . | . . . . . . Melee . | . . . . . . Projectile . | . . . . . . AOE . | . . . . . . Terrain Rammed . | . . . . . . Walls Destroyed . | . . . . . . Machines Disabled . | . . . . . . Actions | -11 -10 -9 -9 -9 -8 --------- Run | Jun Mat Mat Min Exi Min Total 954 | 33 47 141 406 207 120 Wait 86 | . . . 81 . 5 Move 822 | 31 47 128 320 205 91 Hop . | . . . . . . Pick Up 3 | . . 1 . 2 . Fast Attach 3 | 2 . 1 . . . Attach 2 | . . 1 1 . . Detach 1 | . . 1 . . . Swap . | . . . . . . Drop . | . . . . . . Fire . | . . . . . . Melee 36 | . . 8 4 . 24 Ram 1 | . . 1 . . . Kick . | . . . . . . Crush . | . . . . . . Escape Stasis . | . . . . . . Rewire . | . . . . . . Trap . | . . . . . . Miscellaneous . | . . . . . . Route ------- -11/Junkyard -10/Materials -9/Materials (discovered 2 exits: *Min x2) -9/Mines -9/Exiles -8/Mines History --------- Turn | Location | Event 6 | -11/Junkyard | Discovered new exit (range 14) 22 | -11/Junkyard | Entered Materials 40 | -10/Materials | Discovered new exit (range 13) 46 | -10/Materials | Entered another Materials area 46 | -9/Materials | Evolved 2 slots: Utility x2 80 | -9/Materials | Identified exit to Mines 138 | -9/Materials | Entered Mines 139 | -9/Mines | Assembled infested the area 191 | -9/Mines | Met a Derelict bent on vengeance 237 | -9/Mines | Met 8R-AWN 306 | -9/Mines | Build established: Mutant 386 | -9/Mines | Discovered new exit (range 5) 392 | -9/Mines | Entered Exiles 406 | -9/Exiles | Welcomed by 8R-AWN 414 | -9/Exiles | Met EX-HEX 428 | -9/Exiles | Met EX-BIN 434 | -9/Exiles | Aligned with FarCom system 434 | -9/Exiles | Given EX-Vault access code 446 | -9/Exiles | Opened EX-Vault 449 | -9/Exiles | Found Potential Leg 450 | -9/Exiles | Found Potential Leg 462 | -9/Exiles | Warned to stay clear of 0b10 Research branches 474 | -9/Exiles | Met EX-DEC 493 | -9/Exiles | Discovered new exit (range 10) 497 | -9/Exiles | Left Exiles lab with Potential Leg 497 | -9/Exiles | Entered Mines 607 | -8/Mines | Core integrity fell below 50% 614 | -8/Mines | Self-destructed Last Messages --------------- 00570_ Destroyed Imp. Heat Sink. 00570_ G-47 Trooper system corrupted by crushing effect. 00573_ G-47 Trooper suffers critical hit (Smash). 00573_ Destroyed Aluminum Leg. 00573_ G-47 Trooper system corrupted by crushing effect. 00573_ G-47 Trooper destroyed. 00575_ G-47 Trooper suffers critical hit (Smash). 00575_ Destroyed Aluminum Leg. 00575_ G-47 Trooper system corrupted by crushing effect. 00576_ G-47 Trooper system terminally corrupted. 00576_ Particle Gun fried. 00588_ Lgt. Treads destroyed. 00590_ Critical hit (Burn: +37). 00600_ Destroyed Imp. Heat Sink. 00600_ G-47 Trooper system corrupted by crushing effect. 00608_ G-47 Trooper misfires. 00611_ Destroyed Lgt. Nuclear Core. 00611_ G-47 Trooper system corrupted by crushing effect. 00612_ G-47 Trooper system terminally corrupted. 00612_ Aluminum Leg fried. Map ----- +----------------------------------------------------+ | ?????????????????????????????????# #### | | ?????????????????????????????????## ### | | ??????????????????????????????????## #### ### | | ??????????????????????????????????## #### #??? | | ??????????????????????????????????# #### #??? | | ??????????????????????????????????# ##?# #??? | | ????????????????????####??????????# #??# #??? | | ?????????????????#### ##????????## #??## #??? | | ????????????????## ##???????# ##???## ##??? | | ????????????????# #####???# #????## #???? | | ?????????????????# ##?## #????# ##??? | | ??????????????????# """ ### #????# #### | | ??????????????????## """ #????# | | ???????????????????# " " #????# | | ???????????????????# ##????## | | ????????????#####??# ##??????## | | ????????#??## #??# " ### ####????????## ### | | ????????# ?# #??# "%" ##?####????????????# #?? | | ???????## ## #??# ####??????????????????# #?? | | ???????# #### #??????????????????#### #?? | | ???????# % #??????????????????# ### | | ???????# ### #######??#########???????# | | ???????????## ##???????# #???????# ## | | ????????????# #???????# """" #?????### ## # | | ????????????# #########%%"""" #????## # | | ????????????## *[gg@!% """ #????# # | | ?????????????## ########% #???# # | | ??????????????#####??????#! """" #???# # | | ????????????????????????## """" #???## ## | | ????????????????????????#T """ #????## ###? | | ????????????????????????## #?????## ##??? | | ?????????????????????????#########??????#####????? | | ?????????????????????????????????????????????????? | | | | | | | | | | | | | | | | | | | | | | | | | | | | | | | | | | | +----------------------------------------------------+ Best States ------------- Heat Dissipation 28 Energy Generation 5 Energy Capacity 100 Matter Stores 300 Matter Capacity 300 Sight Range 18 Terrain Scan Density 10 Evasion (%) 50 Recoil Reduction 1 Item Schematics ----------------- None Robot Schematics ------------------ None Fabricated ------------ Nothing Alien Tech Used ----------------- None Achievements -------------- None Challenges ------------ None Game ------ Seed ThermoelectricCommSlayer Manual? 0 Play Time 00:12:50 Cumulative 183.8 hours Start 2023.05.09 @ 18:14:36 End 2023.05.09 @ 18:35:54 Sessions 1 Manual Loads 0 Difficulty Rogue Special Mode None Game No. 533 Rogue 533 Adventurer 0 Explorer 0 Win Type - Total 8 Types 7/0/0/1/0/0/0/0/0 Lore% 76 Gallery% 75 Achievement% 67 Wizard Run 0 Options --------- ASCII 0 Keyboard 0 Movement Numpad Keybinds 0 Fullscreen 1 Font 16/SmallcapsGlow Map View 75x55 Tactical HUD 1 Map Filters NONE Filters NONE Steam 1 RUN: b558311e-8996-4c0e-8ae5-f00f5a9101a1